[Event "Marshall CC U2400 October 2024"]
[Site "New York"]
[Date "2024.10.21"]
[Round "5.5"]
[White "Schaefer, Sasha Milo"]
[Black "Solomon, Ciprian"]
[Result "1-0"]
[ECO "A47"]
[WhiteElo "1850"]
[BlackElo "1905"]
[Annotator "RC"]
[PlyCount "131"]
[EventDate "2024.04.20"]
[EventType "swiss"]
[EventCountry "USA"]
[SourceTitle "playchess.com"]
[Source "ChessBase"]
[SourceQuality "1"]
[TimeControl "5400+30"]

1. h3 {[%emt 0:01:50]} Nf6 {[%emt 0:00:33]} 2. d4 {[%emt 0:00:12]} b6 {[%emt 0:00:25]} 3. Nf3 {[%emt 0:00:35]} Bb7 {[%emt 0:00:14]} 4. Bf4 {[%emt 0:00:36]} e6 {[%emt 0:01:29]} 5. e3 {[%emt 0:00:20]} d5 {[%emt 0:00:57]} 6. Bd3 {[%emt 0:01:21]} Bd6 {[%emt 0:01:14]} 7. Bxd6 {[%emt 0:01:41]} Qxd6 {[%emt 0:00:11]} 8. Nbd2 {[%emt 0:00:16]} Nbd7 {[%emt 0:00:27]} 9. O-O {[%emt 0:00:10]} a6 {[%emt 0:00:13]} 10. c3 {[%emt 0:00:45]} c5 {[%emt 0:01:02]} 11. a4 {[%emt 0:01:08]} O-O {[%emt 0:00:31]} 12. Qe2 {[%emt 0:01:00]} e5 {[%emt 0:01:36]} 13. dxe5 {[%emt 0:00:21]} Nxe5 {[%emt 0:00:10]} 14. Rfd1 {[%emt 0:01:12]} Nxd3 {[%emt 0:03:20]} 15. Qxd3 {[%emt 0:00:05]} Rfd8 {[%emt 0:00:48]} 16. b3 {[%emt 0:02:02]} g6 {[%emt 0:00:22]} 17. Ne1 {[%emt 0:01:43]} Qe7 {[%emt 0:01:06]} 18. Nc2 {[%emt 0:00:34]} a5 {[%emt 0:00:48]} 19. Na3 {[%emt 0:01:00]} Nd7 {[%emt 0:01:29]} 20. Nb5 {[%emt 0:00:55]} Ne5 {[%emt 0:02:12]} 21. Qf1 {[%emt 0:00:42]} Rac8 {[%emt 0:03:56]} 22. Na7 {[%emt 0:03:30]} Ra8 {[%emt 0:00:41]} 23. Nb5 {[%emt 0:00:09]} Ba6 {[%emt 0:00:12]} 24. Re1 {[%emt 0:02:08]} Qd7 {[%emt 0:01:47]} 25. f4 {[%emt 0:02:52]} Nc6 {[%emt 0:00:36]} 26. Rad1 {[%emt 0:36:02]} Qf5 {[%emt 0:11:37]} 27. c4 {[%emt 0:05:45]} Bxb5 {[%emt 0:06:53]} 28. axb5 {[%emt 0:01:40]} Nb4 {[%emt 0:01:45]} 29. cxd5 {[%emt 0:04:26]} Qxd5 {[%emt 0:00:38]} 30. Nc4 {[%emt 0:00:41]} Qe6 {[%emt 0:00:24]} 31. Qf3 {[%emt 0:01:38]} a4 {[%emt 0:07:14]} 32. Rd6 {[%emt 0:01:23]} Qe7 {[%emt 0:02:49]} 33. bxa4 {[%emt 0:02:07]} Rxa4 {[%emt 0:01:02]} 34. Nxb6 {[%emt 0:06:43]} Qxd6 {[%emt 0:03:05]} 35. Nxa4 {[%emt 0:00:16]} Qd2 {[%emt 0:00:24]} 36. Qe2 {[%emt 0:01:31]} Qd5 {[%emt 0:03:51]} 37. Nb2 {[%emt 0:02:33]} Qb3 {[%emt 0:00:34]} 38. Rc1 {[%emt 0:02:38]} Nd3 {[%emt 0:02:02]} 39. Nxd3 {[%emt 0:01:20]} Rxd3 {[%emt 0:00:24]} 40. Rxc5 {[%emt 0:00:49]} Rxe3 {[%emt 0:41:29]} 41. Qc2 {[%emt 0:03:00]} Re1+ {[%emt 0:00:00]} 42. Kh2 {[%emt 0:00:07]} Qe6 {[%emt 0:00:00]} 43. Qc3 {[%emt 0:01:55]} f6 {[%emt 0:00:00]} 44. Rc6 {[%emt 0:01:43]} Re3 {[%emt 0:00:00]} 45. Rxe6 {[%emt 0:01:30]} Rxc3 {[%emt 0:00:00]} 46. Rxf6 {[%emt 0:00:17]} Kg7 {[%emt 0:00:00]} 47. Rc6 {[%emt 0:02:29]} Rb3 {[%emt 0:00:00]} 48. Rc7+ {[%emt 0:01:14]} Kf6 {[%emt 0:00:00]} 49. Rc5 {[%emt 0:01:03]} h5 {[%emt 0:00:00]} 50. g4 {[%emt 0:03:32]} h4 {[%emt 0:00:00]} 51. Rc6+ {[%emt 0:00:17]} Kf7 {[%emt 0:00:00]} 52. b6 {[%emt 0:00:10]} Rb2+ {[%emt 0:00:00]} 53. Kg1 {[%emt 0:00:20]} Rb3 {[%emt 0:00:00]} 54. Rc7+ {[%emt 0:00:12]} Ke6 {[%emt 0:00:00]} 55. b7 {[%emt 0:00:13]} Kd5 {[%emt 0:00:00]} 56. Kf2 {[%emt 0:00:55]} Ke4 {[%emt 0:00:00]} 57. Rf7 {[%emt 0:00:17]} Rb2+ {[%emt 0:00:00]} 58. Ke1 {[%emt 0:00:36]} Kf3 {[%emt 0:00:00]} 59. f5 {[%emt 0:00:17]} g5 {[%emt 0:00:00]} 60. f6 {[%emt 0:00:24]} Kg3 {[%emt 0:00:00]} 61. Re7 {[%emt 0:00:33]} Kxh3 {[%emt 0:00:00]} 62. f7 {[%emt 0:00:07]} Kg2 {[%emt 0:00:00]} 63. f8=Q {[%emt 0:00:27]} h3 {[%emt 0:00:00]} 64. Re2+ {[%emt 0:00:18]} Rxe2+ {[%emt 0:00:00]} 65. Kxe2 {[%emt 0:00:04]} h2 {[%emt 0:00:00]} 66. Qf3+ {[%emt 0:00:08]} 1-0

[Event "Marshall CC U2400 October 2024"]
[Site "New York"]
[Date "2024.10.21"]
[Round "5.6"]
[White "Zhao, Austin"]
[Black "Goodrich, Elliott"]
[Result "0-1"]
[ECO "C65"]
[WhiteElo "1756"]
[BlackElo "1851"]
[Annotator "NA RC"]
[PlyCount "116"]
[EventDate "2024.04.20"]
[EventType "swiss"]
[EventCountry "USA"]
[SourceTitle "playchess.com"]
[Source "ChessBase"]
[SourceQuality "1"]
[TimeControl "5400+30"]

1. e4 {[%emt 0:00:02]} e5 {[%emt 0:00:05]} 2. Nf3 {[%emt 0:00:03]} Nc6 {[%emt 0:00:02]} 3. Bb5 {[%emt 0:00:20]} Nf6 {[%emt 0:00:04]} 4. d3 {[%emt 0:00:17]} Bc5 {[%emt 0:00:05]} 5. c3 {[%emt 0:00:38]} d6 {[%emt 0:01:15]} 6. O-O {[%emt 0:00:49]} O-O {[%emt 0:00:15]} 7. Nbd2 {[%emt 0:00:51] 7.h3 gains popularity.} a6 {[%emt 0:00:18] C65: Ruy Lopez: Berlin Defence (3...Nf6), unusual lines and 4 0-0 Bc5.} 8. Bxc6 {[%emt 0:03:04]} bxc6 {[%emt 0:00:07]} 9. d4 {[%emt 0:00:13]} exd4 {[%emt 0:00:31]} 10. cxd4 {[%emt 0:00:04]} Bb6 {[%emt 0:01:21]} 11. h3 {[%emt 0:02:29]} Re8 {[%emt 0:10:08]} 12. Re1 {[%emt 0:00:14]} Bb7 $146 {[%emt 0:02:06]} ({Predecessor:} 12... c5 13. d5 Ba5 14. Re2 Bxd2 15. Nxd2 Bd7 16. b3 c6 17. dxc6 Bxc6 18. f3 d5 {1-0 Bodnaruk,A (2431)-Tan,Z (2513) Hengshui IMSA blitz (Women) 2019 (22)}) 13. b3 {[%emt 0:15:34]} c5 {[%emt 0:04:05]} 14. e5 {[%emt 0:07:48]} Nd7 {[%emt 0:02:17]} 15. exd6 {[%emt 0:06:15]} Rxe1+ {[%emt 0:02:49]} 16. Qxe1 {[%emt 0:00:07]} cxd6 {[%emt 0:00:37]} 17. Bb2 {[%emt 0:02:05]} cxd4 {[%emt 0:02:41]} 18. Bxd4 {[%emt 0:01:51]} Bxd4 {[%emt 0:02:45]} 19. Nxd4 {[%emt 0:00:06]} Qg5 {[%emt 0:03:09]} 20. N2f3 {[%emt 0:02:01]} Qf6 {[%emt 0:04:33]} 21. Rd1 {[%emt 0:03:40]} Ne5 {[%emt 0:02:44]} 22. Qe3 {[%emt 0:08:45]} h6 {[%emt 0:01:26]} 23. Nxe5 {[%emt 0:02:52]} dxe5 {[%emt 0:00:05]} 24. Ne2 {[%emt 0:00:08]} Rc8 {[%emt 0:02:43]} 25. Rc1 {[%emt 0:10:29]} Rxc1+ {[%emt 0:04:46]} 26. Qxc1 {[%emt 0:00:10]} Qg6 {[%emt 0:00:15]} 27. Ng3 {[%emt 0:00:21]} Qd3 {[%emt 0:05:44]} 28. Nf1 {[%emt 0:05:10]} Qe4 {[%emt 0:02:23]} 29. Ne3 {[%emt 0:00:07]} Qc6 {[%emt 0:04:20]} 30. Qxc6 {[%emt 0:00:25]} Bxc6 {[%emt 0:00:04]} 31. Kf1 {[%emt 0:01:55]} f6 {[%emt 0:00:28]} 32. Ke2 {[%emt 0:01:08]} Kf7 {[%emt 0:00:11]} 33. Kd3 {[%emt 0:00:26]} Ke6 {[%emt 0:00:04]} 34. Kc4 {[%emt 0:00:52]} f5 {[%emt 0:04:47]} 35. Kc5 {[%emt 0:00:37]} Bb5 {[%emt 0:00:16]} ({Better is} 35... Ba8 $15 36. g3 f4) 36. Nc4 {[%emt 0:05:45]} e4 {[%emt 0:03:04]} 37. a4 {[%emt 0:00:32]} Bd7 {[%emt 0:01:56]} 38. Nb6 {[%emt 0:01:08]} Be8 {[%emt 0:00:29]} 39. Nd5 {[%emt 0:00:12]} Ke5 {[%emt 0:00:46]} 40. Nc7 {[%emt 0:00:55]} Bf7 {[%emt 0:06:51]} 41. b4 {[%emt 0:07:55]} f4 {[%emt 0:00:09]} 42. Nxa6 {[%emt 0:06:17]} e3 {[%emt 0:00:09]} 43. fxe3 {[%emt 0:00:03]} fxe3 {[%emt 0:00:14]} 44. b5 {[%emt 0:00:03]} e2 {[%emt 0:00:18]} 45. Nb4 {[%emt 0:00:03]} Bg6 {[%emt 0:00:24]} 46. Nc6+ {[%emt 0:02:27]} Ke4 {[%emt 0:00:36]} 47. b6 {[%emt 0:00:58]} e1=Q {[%emt 0:00:04]} 48. b7 {[%emt 0:00:05]} Qc3+ {[%emt 0:00:12]} 49. Kb6 {[%emt 0:01:34]} Be8 {[%emt 0:00:20]} 50. Na7 {[%emt 0:01:44]} Qd4+ {[%emt 0:00:36]} 51. Ka6 {[%emt 0:00:23]} Qxa4+ {[%emt 0:00:06]} 52. Kb6 {[%emt 0:04:30]} Qd4+ {[%emt 0:00:05]} 53. Ka6 {[%emt 0:00:00]} Qd6+ {[%emt 0:00:03]} 54. Ka5 {[%emt 0:00:00]} Kd5 {[%emt 0:01:03]} 55. Nc8 {[%emt 0:00:00]} Qc7+ {[%emt 0:00:08]} 56. Ka6 {[%emt 0:00:00]} Bb5+ {[%emt 0:00:09]} 57. Ka7 {[%emt 0:00:00]} Bc6 {[%emt 0:00:04]} 58. Nb6+ {[%emt 0:00:00]} Kc5 {[%emt 0:00:11]} 0-1

[Event "Marshall CC U2400 October 2024"]
[Site "New York"]
[Date "2024.10.21"]
[Round "5.7"]
[White "Yoon, Jeremy K"]
[Black "Dalhouse, Justin"]
[Result "1/2-1/2"]
[ECO "D00"]
[WhiteElo "1728"]
[BlackElo "1904"]
[Annotator "RC"]
[PlyCount "103"]
[EventDate "2024.04.20"]
[EventType "swiss"]
[EventCountry "USA"]
[SourceTitle "playchess.com"]
[Source "ChessBase"]
[SourceQuality "1"]
[TimeControl "5400+30"]

1. d4 {[%emt 0:00:50]} Nf6 {[%emt 0:00:09]} 2. Nc3 {[%emt 0:00:06]} e6 {[%emt 0:01:33]} 3. Bf4 {[%emt 0:00:05]} d5 {[%emt 0:00:59]} 4. Nb5 {[%emt 0:00:10]} Na6 {[%emt 0:00:01]} 5. e3 {[%emt 0:00:11]} Be7 {[%emt 0:00:37]} 6. Nf3 {[%emt 0:00:08]} O-O {[%emt 0:00:23]} 7. Bd3 {[%emt 0:00:05]} Bd7 {[%emt 0:00:22]} 8. a4 {[%emt 0:00:29]} Ne4 {[%emt 0:02:10]} 9. Ne5 {[%emt 0:03:35]} c6 {[%emt 0:02:52]} 10. Nc3 {[%emt 0:00:12]} Bb4 {[%emt 0:01:45]} 11. O-O {[%emt 0:07:38]} Bxc3 {[%emt 0:00:48]} 12. bxc3 {[%emt 0:00:09]} f6 {[%emt 0:00:10]} 13. Nxd7 {[%emt 0:00:31]} Qxd7 {[%emt 0:00:03]} 14. Bxa6 {[%emt 0:00:21]} bxa6 {[%emt 0:00:11]} 15. Qd3 {[%emt 0:00:11]} c5 {[%emt 0:01:28]} 16. c4 {[%emt 0:03:39]} Rac8 {[%emt 0:01:09]} 17. f3 {[%emt 0:01:47]} Nd6 {[%emt 0:01:30]} 18. cxd5 {[%emt 0:04:45]} exd5 {[%emt 0:01:51]} 19. Qxa6 {[%emt 0:03:20]} Rc6 {[%emt 0:00:19]} 20. Qd3 {[%emt 0:00:49]} cxd4 {[%emt 0:01:54]} 21. Qxd4 {[%emt 0:04:54]} Nf5 {[%emt 0:00:04]} 22. Qd3 {[%emt 0:00:28]} g5 {[%emt 0:03:30]} 23. Bg3 {[%emt 0:00:54]} Rfc8 {[%emt 0:00:30]} 24. e4 {[%emt 0:01:31]} Nxg3 {[%emt 0:00:15]} 25. hxg3 {[%emt 0:00:04]} Rxc2 {[%emt 0:02:13]} 26. exd5 {[%emt 0:18:51]} R2c5 {[%emt 0:00:10]} 27. Rad1 {[%emt 0:01:19]} Rd8 {[%emt 0:00:08]} 28. d6 {[%emt 0:00:50]} Rc6 {[%emt 0:00:31]} 29. Qe3 {[%emt 0:40:36]} a6 {[%emt 0:00:22]} 30. Rfe1 {[%emt 0:00:42]} Rxd6 {[%emt 0:00:28]} 31. Rxd6 {[%emt 0:00:18]} Qxd6 {[%emt 1:17:35]} 32. Qe6+ {[%emt 0:00:22]} Kg7 {[%emt 0:00:00]} 33. Qe7+ {[%emt 0:01:36]} Kh6 {[%emt 0:00:00]} 34. Qe6 {[%emt 0:00:39]} Kg6 {[%emt 0:00:00]} 35. Qe4+ {[%emt 0:00:40]} Kh6 {[%emt 0:00:00]} 36. Kh2 {[%emt 0:00:36]} Rb8 {[%emt 0:00:00]} 37. Qf5 {[%emt 0:00:31]} Rb4 {[%emt 0:00:00]} 38. Re4 {[%emt 0:01:21]} Rxe4 {[%emt 0:00:00]} 39. Qxe4 {[%emt 0:00:06]} Kg7 {[%emt 0:00:00]} 40. Kg1 {[%emt 0:00:14]} h5 {[%emt 0:00:00]} 41. Qb7+ {[%emt 0:00:36]} Kh6 {[%emt 0:00:00]} 42. Qf7 {[%emt 0:01:36]} a5 {[%emt 0:00:00]} 43. Kf2 {[%emt 0:00:30]} g4 {[%emt 0:00:00]} 44. fxg4 {[%emt 0:01:45]} hxg4 {[%emt 0:00:00]} 45. Qe8 {[%emt 0:00:23]} Kg7 {[%emt 0:00:00]} 46. Qb5 {[%emt 0:01:13]} Qd4+ {[%emt 0:00:00]} 47. Kf1 {[%emt 0:00:34]} Qd2 {[%emt 0:00:00]} 48. Qb7+ {[%emt 0:00:31]} Kg6 {[%emt 0:00:00]} 49. Qb1+ {[%emt 0:00:38]} Kg5 {[%emt 0:00:00]} 50. Qb5+ {[%emt 0:00:08]} f5 {[%emt 0:00:00]} 51. Qe5 {[%emt 0:01:11]} Qd3+ {[%emt 0:00:00]} 52. Kf2 {[%emt 0:00:24]} 1/2-1/2

[Event "Marshall CC U2400 October 2024"]
[Site "New York"]
[Date "2024.10.21"]
[Round "5.8"]
[White "Gutnik, Aleksandr"]
[Black "Mehta, Naman"]
[Result "1-0"]
[ECO "C67"]
[WhiteElo "1944"]
[BlackElo "1677"]
[Annotator "RC"]
[PlyCount "109"]
[EventDate "2024.04.20"]
[EventType "swiss"]
[EventCountry "USA"]
[SourceTitle "playchess.com"]
[Source "ChessBase"]
[SourceQuality "1"]
[TimeControl "5400+30"]

1. e4 {[%emt 0:00:16]} e5 {[%emt 0:00:20]} 2. Nf3 {[%emt 0:00:06]} Nc6 {[%emt 0:00:12]} 3. Bb5 {[%emt 0:00:05]} Nf6 {[%emt 0:00:13]} 4. O-O {[%emt 0:00:30]} Nxe4 {[%emt 0:00:18]} 5. d4 {[%emt 0:00:08]} exd4 {[%emt 0:06:39]} 6. Re1 {[%emt 0:00:24]} f5 {[%emt 0:04:15]} 7. Nxd4 {[%emt 0:06:01]} Be7 {[%emt 0:17:54]} 8. Nxf5 {[%emt 0:02:32]} O-O {[%emt 0:06:16]} 9. Qd5+ {[%emt 0:00:31]} Kh8 {[%emt 0:00:09]} 10. Bxc6 {[%emt 0:11:09]} Nf6 {[%emt 0:13:57]} 11. Qd3 {[%emt 0:05:37]} dxc6 {[%emt 0:02:17]} 12. Nxe7 {[%emt 0:00:49]} Qe8 {[%emt 0:00:44]} 13. Bd2 {[%emt 0:05:29]} Qh5 {[%emt 0:00:14]} 14. Nxc8 {[%emt 0:03:28]} Raxc8 {[%emt 0:00:02]} 15. h3 {[%emt 0:01:11]} Rcd8 {[%emt 0:00:25]} 16. Qe2 {[%emt 0:01:01]} Qc5 {[%emt 0:00:42]} 17. Be3 {[%emt 0:00:43]} Qb4 {[%emt 0:00:31]} 18. c3 {[%emt 0:01:08]} Qa5 {[%emt 0:00:25]} 19. Nd2 {[%emt 0:00:24]} Qf5 {[%emt 0:00:36]} 20. Nf1 {[%emt 0:02:28]} Nd5 {[%emt 0:00:42]} 21. Rad1 {[%emt 0:00:53]} Rde8 {[%emt 0:00:17]} 22. Rd2 {[%emt 0:01:07]} Rf6 {[%emt 0:00:58]} 23. c4 {[%emt 0:02:22]} Nb6 {[%emt 0:02:49]} 24. b3 {[%emt 0:00:37]} h6 {[%emt 0:00:28]} 25. Red1 {[%emt 0:00:19]} Rfe6 {[%emt 0:01:16]} 26. Qg4 {[%emt 0:00:52]} Qf7 {[%emt 0:00:27]} 27. Rd8 {[%emt 0:01:49]} Kh7 {[%emt 0:01:38]} 28. Rxe8 {[%emt 0:00:12]} Rxe8 {[%emt 0:00:09]} 29. Bxb6 {[%emt 0:01:23]} cxb6 {[%emt 0:00:56]} 30. Rd7 {[%emt 0:00:18]} Qf6 {[%emt 0:00:21]} 31. Qd4 {[%emt 0:00:48]} Qg5 {[%emt 0:00:31]} 32. h4 {[%emt 0:00:50]} Qg6 {[%emt 0:00:33]} 33. Qd3 {[%emt 0:00:20]} Re1 {[%emt 0:00:52]} 34. Qxg6+ {[%emt 0:00:14]} Kxg6 {[%emt 0:00:01]} 35. Rxb7 {[%emt 0:00:34]} Ra1 {[%emt 0:01:25]} 36. Rxa7 {[%emt 0:00:13]} Kh5 {[%emt 0:00:39]} 37. Rxg7 {[%emt 0:00:39]} b5 {[%emt 0:00:32]} 38. cxb5 {[%emt 0:00:51]} cxb5 {[%emt 0:00:01]} 39. Rb7 {[%emt 0:00:31]} Kxh4 {[%emt 0:00:29]} 40. Rxb5 {[%emt 0:00:16]} Rxa2 {[%emt 0:00:18]} 41. Rb4+ {[%emt 0:01:44]} Kg5 {[%emt 0:00:10]} 42. g3 {[%emt 0:00:10]} h5 {[%emt 0:00:13]} 43. Kg2 {[%emt 0:00:11]} Ra5 {[%emt 0:00:26]} 44. Ne3 {[%emt 0:00:17]} Rc5 {[%emt 0:00:40]} 45. f4+ {[%emt 0:00:14]} Kf6 {[%emt 0:00:13]} 46. Rb6+ {[%emt 0:00:08]} Kg7 {[%emt 0:00:06]} 47. Kf3 {[%emt 0:00:14]} h4 {[%emt 0:00:14]} 48. gxh4 {[%emt 0:00:10]} Rc7 {[%emt 0:00:07]} 49. Kg4 {[%emt 0:00:20]} Kh8 {[%emt 0:00:06]} 50. f5 {[%emt 0:00:41]} Rg7+ {[%emt 0:00:11]} 51. Kf4 {[%emt 0:00:11]} Rf7 {[%emt 0:00:07]} 52. Ng4 {[%emt 0:00:17]} Rf8 {[%emt 0:00:11]} 53. Ke5 {[%emt 0:00:25]} Rg8 {[%emt 0:00:26]} 54. Rh6+ {[%emt 0:00:57]} Kg7 {[%emt 0:00:03]} 55. Rg6+ {[%emt 0:52:53]} 1-0

[Event "Marshall CC U2400 October 2024"]
[Site "New York"]
[Date "2024.10.21"]
[Round "5.9"]
[White "Baranwal, Suvan"]
[Black "Han, Leqi"]
[Result "1-0"]
[ECO "B50"]
[WhiteElo "1794"]
[BlackElo "1681"]
[Annotator "NA RC"]
[PlyCount "53"]
[EventDate "2024.04.20"]
[EventType "swiss"]
[EventCountry "USA"]
[SourceTitle "playchess.com"]
[Source "ChessBase"]
[SourceQuality "1"]
[TimeControl "5400+30"]

1. e4 {[%emt 0:00:02]} c5 {[%emt 0:00:11]} 2. Nf3 {[%emt 0:00:03]} e6 {[%emt 0:00:15]} 3. c3 {[%emt 0:00:38]} Nf6 {[%emt 0:00:16]} 4. Bd3 {[%emt 0:00:11]} d6 {[%emt 0:02:37]} 5. Bc2 {[%emt 0:00:03]} Be7 {[%emt 0:01:38]} 6. d4 {[%emt 0:01:32]} cxd4 {[%emt 0:03:14]} 7. cxd4 {[%emt 0:00:01]} Nbd7 {[%emt 0:03:12]} 8. Nc3 {[%emt 0:01:20]} b6 {[%emt 0:01:21]} 9. e5 {[%emt 0:10:53]} Nd5 {[%emt 0:00:50]} 10. Nxd5 {[%emt 0:13:17]} exd5 {[%emt 0:00:11]} 11. O-O {[%emt 0:00:47]} dxe5 {[%emt 0:01:17]} 12. dxe5 {[%emt 0:00:13]} Nc5 {[%emt 0:01:22]} 13. b4 {[%emt 0:05:03]} Ne4 {[%emt 0:05:10]} 14. Ba4+ {[%emt 0:02:37]} Bd7 {[%emt 0:02:56]} 15. e6 {[%emt 0:06:59]} Bxa4 {[%emt 0:01:44]} 16. Qxa4+ {[%emt 0:00:59]} Kf8 {[%emt 0:00:09]} 17. exf7 {[%emt 0:00:59]} Bf6 {[%emt 0:00:19]} 18. Ba3 {[%emt 0:13:29]} Bxa1 {[%emt 0:03:28]} 19. Rxa1 {[%emt 0:01:38]} Rc8 {[%emt 0:10:26]} 20. Ne5 {[%emt 0:10:57]} Qe7 {[%emt 0:07:50]} 21. b5 {[%emt 0:09:22]} Nc5 {[%emt 0:00:05]} 22. Qf4 {[%emt 0:01:53]} Rc7 {[%emt 0:02:48]} 23. Re1 {[%emt 0:02:42]} Qf6 {[%emt 0:01:25]} 24. Ng6+ {[%emt 0:00:36]} hxg6 {[%emt 0:00:35]} 25. Qxc7 {[%emt 0:00:06]} Qxf7 {[%emt 0:02:26]} 26. Qd8+ {[%emt 0:00:06]} Qe8 {[%emt 0:00:03]} 27. Qxe8# {[%emt 0:00:34]} 1-0

[Event "Marshall CC U2400 October 2024"]
[Site "New York"]
[Date "2024.10.21"]
[Round "5.10"]
[White "Alvarado-Yoshida, Nico"]
[Black "Fang, Arabella"]
[Result "0-1"]
[ECO "B22"]
[WhiteElo "1770"]
[BlackElo "1812"]
[Annotator "NA RC"]
[PlyCount "100"]
[EventDate "2024.04.20"]
[EventType "swiss"]
[EventCountry "USA"]
[SourceTitle "playchess.com"]
[Source "ChessBase"]
[SourceQuality "1"]
[TimeControl "5400+30"]

1. e4 {[%emt 0:00:01]} c5 {[%emt 0:00:02]} 2. c3 {[%emt 0:00:05]} d5 {[%emt 0:00:03]} 3. exd5 {[%emt 0:00:13]} Qxd5 {[%emt 0:00:03]} 4. d4 {[%emt 0:00:12]} Nf6 {[%emt 0:00:05]} 5. Nf3 {[%emt 0:03:12]} Nc6 {[%emt 0:00:04]} 6. dxc5 {[%emt 0:01:15]} Qxd1+ {[%emt 0:04:10]} 7. Kxd1 {[%emt 0:00:10]} Bf5 {[%emt 0:03:49] B22: Sizilianisch (Alapin 2.c3).} 8. b4 {[%emt 0:15:48]} O-O-O+ {[%emt 0:03:33]} 9. Ke1 {[%emt 0:02:32]} g6 {[%emt 0:09:49]} 10. b5 {[%emt 0:07:09]} Nb8 {[%emt 0:00:51]} 11. Ne5 {[%emt 0:11:45]} Be6 {[%emt 0:02:27]} 12. a4 {[%emt 0:04:54]} Ne4 {[%emt 0:06:19]} ({Black should try} 12... Nd5 $11) 13. Ba3 {[%emt 0:09:32]} (13. Be3 $14) 13... Bg7 {[%emt 0:11:34]} 14. f4 {[%emt 0:04:59]} (14. Nd3 $1 $11 {remains equal.}) 14... Nd7 {[%emt 0:08:12]} 15. Nxd7 {[%emt 0:07:48]} Rxd7 {[%emt 0:03:09]} 16. Bb4 {[%emt 0:05:17]} Rhd8 {[%emt 0:02:33]} 17. Be2 {[%emt 0:02:16]} Bb3 {[%emt 0:04:15]} 18. Rf1 {[%emt 0:03:10]} Bc2 {[%emt 0:05:07]} 19. a5 {[%emt 0:05:44]} Bxb1 {[%emt 0:04:35]} 20. Rxb1 {[%emt 0:00:15]} Nd2 {[%emt 0:01:23]} 21. Rc1 {[%emt 0:05:52]} Nxf1 {[%emt 0:00:51]} 22. Kxf1 {[%emt 0:00:18]} Bh6 {[%emt 0:07:55]} 23. g3 {[%emt 0:02:32]} e5 {[%emt 0:02:08]} 24. b6 {[%emt 0:02:38]} axb6 {[%emt 0:02:03]} 25. cxb6 {[%emt 0:01:13]} exf4 {[%emt 0:01:26]} 26. Ra1 {[%emt 0:00:32]} fxg3 {[%emt 0:03:21]} 27. hxg3 {[%emt 0:00:08]} Be3 {[%emt 0:04:23]} 28. c4 $1 {[%emt 0:00:33]} Rd4 {[%emt 0:05:36]} 29. Rb1 {[%emt 0:03:40]} (29. a6 $11 bxa6 30. Rxa6) 29... Bd2 {[%emt 0:02:28]} 30. Bc5 {[%emt 0:00:39]} (30. a6 $11 bxa6 31. Bc5) 30... Re4 {[%emt 0:00:36]} 31. a6 {[%emt 0:00:41]} bxa6 {[%emt 0:01:24]} 32. b7+ {[%emt 0:00:01]} Kb8 {[%emt 0:00:28]} 33. Ba3 {[%emt 0:01:15]} Ba5 {[%emt 0:00:58]} 34. c5 {[%emt 0:00:22]} Rde8 {[%emt 0:00:35]} 35. Bxa6 {[%emt 0:00:48]} Re1+ {[%emt 0:00:10]} 36. Rxe1 {[%emt 0:00:06]} Rxe1+ {[%emt 0:00:13]} 37. Kf2 {[%emt 0:00:17]} Ra1 {[%emt 0:00:34]} 38. Bb2 {[%emt 0:00:53]} Ra2 {[%emt 0:00:06]} 39. c6 {[%emt 0:00:07]} Rxb2+ {[%emt 0:00:07]} 40. Ke3 {[%emt 0:00:04]} Rb3+ {[%emt 0:00:56]} 41. Ke4 {[%emt 0:00:46]} Rxg3 {[%emt 0:00:12]} 42. Kd5 {[%emt 0:00:14]} Bc7 {[%emt 0:00:11]} 43. Kc5 {[%emt 0:00:25]} h5 {[%emt 0:00:09]} 44. Kb5 {[%emt 0:00:14]} h4 {[%emt 0:00:17]} 45. Kc5 {[%emt 0:00:15]} h3 {[%emt 0:00:07]} 46. Bc4 {[%emt 0:00:08]} Rc3 {[%emt 0:00:18]} 47. Kb5 {[%emt 0:00:04]} Rxc4 {[%emt 0:00:06]} 48. Kxc4 {[%emt 0:00:07]} h2 {[%emt 0:00:04]} 49. Kb5 {[%emt 0:00:05]} h1=Q {[%emt 0:00:08]} 50. Ka6 {[%emt 0:00:05]} Qxc6# {[%emt 0:00:39]} 0-1